[Event "*** Titled Tuesday 3|2 Blitz"]
[Site "Chess.com"]
[Date "2015.10.06"]
[Round "3"]
[White "HansCoolNiemann"]
[Black "Trendle"]
[Result "0-1"]
[WhiteElo "2061"]
[BlackElo "2345"]
[TimeControl "180+2"]
[EndTime "11:40:22 PDT"]
[Termination "Trendle won by checkmate"]

1. d4 {[%clk 0:03:01.9]} 1... f5 {[%clk 0:03:00.8]} 2. e4 {[%clk 0:03:01.3]}
2... fxe4 {[%clk 0:03:01.8]} 3. Nc3 {[%clk 0:03:02.6]} 3... Nf6 {[%clk
0:03:03.1]} 4. Bg5 {[%clk 0:03:03.2]} 4... Nc6 {[%clk 0:03:04.2]} 5. d5 {[%clk
0:03:03.8]} 5... Ne5 {[%clk 0:03:05]} 6. Qd4 {[%clk 0:03:05.1]} 6... Nf7 {[%clk
0:03:04.5]} 7. Bxf6 {[%clk 0:03:06]} 7... exf6 {[%clk 0:03:05.2]} 8. Nxe4 {[%clk
0:03:07.4]} 8... f5 {[%clk 0:03:05.1]} 9. Ng3 {[%clk 0:03:07]} 9... g6 {[%clk
0:03:05.7]} 10. O-O-O {[%clk 0:03:07.3]} 10... Bh6+ {[%clk 0:03:07.2]} 11. f4
{[%clk 0:03:08]} 11... O-O {[%clk 0:03:07]} 12. Nf3 {[%clk 0:03:09.2]} 12... Bg7
{[%clk 0:02:55.1]} 13. Qd2 {[%clk 0:03:08.9]} 13... Qf6 {[%clk 0:02:54.4]} 14.
c3 {[%clk 0:03:08.3]} 14... d6 {[%clk 0:02:46.1]} 15. Bd3 {[%clk 0:03:07.2]}
15... c5 {[%clk 0:02:39.4]} 16. dxc6 {[%clk 0:02:57.7]} 16... bxc6 {[%clk
0:02:40.7]} 17. Bc4 {[%clk 0:02:51.3]} 17... d5 {[%clk 0:02:39.8]} 18. Bb3
{[%clk 0:02:51.7]} 18... a5 {[%clk 0:02:38.2]} 19. Ba4 {[%clk 0:02:52.6]} 19...
Rb8 {[%clk 0:02:30.8]} 20. Rhe1 {[%clk 0:02:50.5]} 20... Bd7 {[%clk 0:02:19.2]}
21. Qf2 {[%clk 0:02:40.4]} 21... Bh6 {[%clk 0:02:10.9]} 22. Qa7 {[%clk
0:01:55.2]} 22... Bxf4+ {[%clk 0:02:07.1]} 23. Kc2 {[%clk 0:01:55.7]} 23... Rfd8
{[%clk 0:01:48.4]} 24. Ne2 {[%clk 0:01:54.7]} 24... Bh6 {[%clk 0:01:40.7]} 25.
Ned4 {[%clk 0:01:54.9]} 25... Qd6 {[%clk 0:01:24.4]} 26. Nb3 {[%clk 0:01:34]}
26... Ra8 {[%clk 0:01:16.2]} 27. Qc5 {[%clk 0:01:32.3]} 27... Bf8 {[%clk
0:01:16.8]} 28. Qxd6 {[%clk 0:01:31.2]} 28... Bxd6 {[%clk 0:01:18.7]} 29. Nfd4
{[%clk 0:01:28.1]} 29... Rac8 {[%clk 0:01:14]} 30. Nxa5 {[%clk 0:01:25.1]} 30...
c5 {[%clk 0:01:07.2]} 31. Bxd7 {[%clk 0:01:18.8]} 31... Rxd7 {[%clk 0:01:09.1]}
32. Nb5 {[%clk 0:01:17.1]} 32... Bxh2 {[%clk 0:01:09.3]} 33. Nb3 {[%clk
0:01:12.2]} 33... Ne5 {[%clk 0:01:02.8]} 34. a4 {[%clk 0:01:00.5]} 34... Bf4
{[%clk 0:01:00.6]} 35. Re2 {[%clk 0:00:58.8]} 35... Ng4 {[%clk 0:00:58]} 36. Kb1
{[%clk 0:00:54.8]} 36... Kf7 {[%clk 0:00:43]} 37. Rde1 {[%clk 0:00:41.3]} 37...
Bg3 {[%clk 0:00:43.5]} 38. Rh1 {[%clk 0:00:39.9]} 38... h5 {[%clk 0:00:43.7]}
39. Rd1 {[%clk 0:00:38.8]} 39... Bf4 {[%clk 0:00:43.9]} 40. Na1 {[%clk
0:00:21.2]} 40... Ne3 {[%clk 0:00:35.1]} 41. Rde1 {[%clk 0:00:21.3]} 41... d4
{[%clk 0:00:36.4]} 42. cxd4 {[%clk 0:00:16.7]} 42... cxd4 {[%clk 0:00:38.3]} 43.
Nb3 {[%clk 0:00:14.6]} 43... d3 {[%clk 0:00:34.6]} 44. Rxe3 {[%clk 0:00:15]}
44... Bxe3 {[%clk 0:00:36.1]} 45. Rxe3 {[%clk 0:00:16.8]} 45... d2 {[%clk
0:00:37.7]} 46. Nxd2 {[%clk 0:00:17.6]} 46... Rxd2 {[%clk 0:00:38.2]} 47. a5
{[%clk 0:00:19.1]} 47... Rc5 {[%clk 0:00:19.9]} 48. Rb3 {[%clk 0:00:16.3]} 48...
Rdd5 {[%clk 0:00:20.7]} 49. Nc3 {[%clk 0:00:17.1]} 49... Rxa5 {[%clk 0:00:20.1]}
50. Nxd5 {[%clk 0:00:17.4]} 50... Rxd5 {[%clk 0:00:22]} 51. Rf3 {[%clk 0:00:16]}
51... Rd2 {[%clk 0:00:21.9]} 52. g3 {[%clk 0:00:17]} 52... Kf6 {[%clk 0:00:21]}
53. Ka2 {[%clk 0:00:15]} 53... Kg5 {[%clk 0:00:21.3]} 54. Ka3 {[%clk 0:00:16.5]}
54... Kg4 {[%clk 0:00:21.9]} 55. Rc3 {[%clk 0:00:17.9]} 55... Rg2 {[%clk
0:00:20.1]} 56. b4 {[%clk 0:00:17.6]} 56... Rg1 {[%clk 0:00:10.5]} 57. b5 {[%clk
0:00:18.3]} 57... Ra1+ {[%clk 0:00:11.1]} 58. Kb4 {[%clk 0:00:17.9]} 58... g5
{[%clk 0:00:12]} 59. b6 {[%clk 0:00:18.5]} 59... Ra8 {[%clk 0:00:11.9]} 60. Kb5
{[%clk 0:00:16.3]} 60... f4 {[%clk 0:00:13]} 61. gxf4 {[%clk 0:00:16.5]} 61...
Kxf4 {[%clk 0:00:14.9]} 62. Rc4+ {[%clk 0:00:17.4]} 62... Kf3 {[%clk 0:00:14.1]}
63. Rc3+ {[%clk 0:00:18.5]} 63... Kg4 {[%clk 0:00:15.4]} 64. Rc5 {[%clk
0:00:19.8]} 64... h4 {[%clk 0:00:16.4]} 65. Rc4+ {[%clk 0:00:21]} 65... Kh3
{[%clk 0:00:17.5]} 66. Kc6 {[%clk 0:00:21.8]} 66... g4 {[%clk 0:00:18.1]} 67. b7
{[%clk 0:00:22.3]} 67... Rf8 {[%clk 0:00:17.7]} 68. Kb6 {[%clk 0:00:19.3]} 68...
Rb8 {[%clk 0:00:17]} 69. Ka7 {[%clk 0:00:18.7]} 69... Rxb7+ {[%clk 0:00:18.2]}
70. Kxb7 {[%clk 0:00:20.6]} 70... g3 {[%clk 0:00:20.1]} 71. Rc3 {[%clk
0:00:18.2]} 71... Kh2 {[%clk 0:00:20.9]} 72. Kc6 {[%clk 0:00:19.7]} 72... g2
{[%clk 0:00:22.1]} 73. Rc2 {[%clk 0:00:21.1]} 73... Kh1 {[%clk 0:00:21]} 74. Rc4
{[%clk 0:00:22.1]} 74... h3 {[%clk 0:00:18.8]} 75. Rc1+ {[%clk 0:00:20.6]} 75...
g1=Q {[%clk 0:00:19.6]} 76. Rxg1+ {[%clk 0:00:21.7]} 76... Kxg1 {[%clk 0:00:21]}
77. Kd5 {[%clk 0:00:23.2]} 77... h2 {[%clk 0:00:22.6]} 78. Ke4 {[%clk
0:00:25.1]} 78... h1=Q+ {[%clk 0:00:24.2]} 79. Kf5 {[%clk 0:00:27]} 79... Qh4
{[%clk 0:00:25.3]} 80. Ke6 {[%clk 0:00:27.8]} 80... Kf2 {[%clk 0:00:27.2]} 81.
Kd5 {[%clk 0:00:29.4]} 81... Ke3 {[%clk 0:00:29.1]} 82. Ke6 {[%clk 0:00:30.9]}
82... Qg5 {[%clk 0:00:29.8]} 83. Kd6 {[%clk 0:00:32.8]} 83... Kd4 {[%clk
0:00:31.2]} 84. Ke6 {[%clk 0:00:34.6]} 84... Qg6+ {[%clk 0:00:32.5]} 85. Ke7
{[%clk 0:00:35.5]} 85... Kd5 {[%clk 0:00:34.4]} 86. Kd7 {[%clk 0:00:37.4]} 86...
Qf7+ {[%clk 0:00:35.6]} 87. Kd8 {[%clk 0:00:38.2]} 87... Kc6 {[%clk 0:00:37.5]}
88. Kc8 {[%clk 0:00:40.1]} 88... Qc7# {[%clk 0:00:38.8]} 0-1

[Event "*** Titled Tuesday 3|2 Blitz"]
[Site "Chess.com"]
[Date "2015.10.06"]
[Round "3"]
[White "Haridaskesavan"]
[Black "Rating-Schmating"]
[Result "1-0"]
[WhiteElo "2049"]
[BlackElo "1978"]
[TimeControl "180+2"]
[EndTime "11:41:32 PDT"]
[Termination "Haridaskesavan won by checkmate"]

1. e4 {[%clk 0:03:01.9]} 1... e6 {[%clk 0:03:01]} 2. d3 {[%clk 0:03:02.2]} 2...
d5 {[%clk 0:03:01.8]} 3. Nd2 {[%clk 0:03:02.8]} 3... Nf6 {[%clk 0:03:02.8]} 4.
Ngf3 {[%clk 0:03:02.9]} 4... Bc5 {[%clk 0:03:03.6]} 5. e5 {[%clk 0:02:59]} 5...
Nfd7 {[%clk 0:03:02.6]} 6. g3 {[%clk 0:02:58.1]} 6... b6 {[%clk 0:02:58.1]} 7.
Bg2 {[%clk 0:02:57.4]} 7... Bb7 {[%clk 0:02:59.1]} 8. O-O {[%clk 0:02:57.4]}
8... O-O {[%clk 0:02:58.7]} 9. Re1 {[%clk 0:02:54.2]} 9... Be7 {[%clk
0:02:56.2]} 10. Nf1 {[%clk 0:02:54.6]} 10... c5 {[%clk 0:02:57.2]} 11. h4 {[%clk
0:02:52.7]} 11... Nc6 {[%clk 0:02:57.4]} 12. Bf4 {[%clk 0:02:53.1]} 12... Re8
{[%clk 0:02:46.2]} 13. h5 {[%clk 0:02:53.7]} 13... f6 {[%clk 0:02:46.3]} 14.
exf6 {[%clk 0:02:53.2]} 14... Bxf6 {[%clk 0:02:47.5]} 15. c3 {[%clk 0:02:47.9]}
15... e5 {[%clk 0:02:48]} 16. Bd2 {[%clk 0:02:41.4]} 16... Ba6 {[%clk
0:02:46.4]} 17. Bc1 {[%clk 0:02:37.6]} 17... d4 {[%clk 0:02:41.8]} 18. c4 {[%clk
0:02:36.6]} 18... Rc8 {[%clk 0:02:41.6]} 19. N1h2 {[%clk 0:02:36.6]} 19... Ne7
{[%clk 0:02:34.1]} 20. Ng4 {[%clk 0:02:32]} 20... Nf5 {[%clk 0:02:32.8]} 21.
Nxf6+ {[%clk 0:02:31.2]} 21... Qxf6 {[%clk 0:02:30.1]} 22. Bg5 {[%clk
0:02:29.3]} 22... Qf7 {[%clk 0:02:29.8]} 23. g4 {[%clk 0:02:28.1]} 23... Nd6
{[%clk 0:02:29.1]} 24. Qe2 {[%clk 0:02:21.7]} 24... e4 {[%clk 0:02:21.5]} 25.
Nd2 {[%clk 0:02:17.8]} 25... exd3 {[%clk 0:02:08.9]} 26. Qxd3 {[%clk 0:02:18.2]}
26... Bxc4 {[%clk 0:02:07.6]} 27. Nxc4 {[%clk 0:02:16.9]} 27... Nxc4 {[%clk
0:02:08.1]} 28. Qg3 {[%clk 0:01:53.1]} 28... Rxe1+ {[%clk 0:01:55.9]} 29. Rxe1
{[%clk 0:01:52.9]} 29... h6 {[%clk 0:01:52.5]} 30. Bc1 {[%clk 0:01:48.5]} 30...
Nf6 {[%clk 0:01:52.6]} 31. b3 {[%clk 0:01:34.9]} 31... Na5 {[%clk 0:01:49.8]}
32. Qd6 {[%clk 0:01:30]} 32... Re8 {[%clk 0:01:48]} 33. Rf1 {[%clk 0:01:20.1]}
33... Qe7 {[%clk 0:01:43.3]} 34. Qg3 {[%clk 0:01:16.9]} 34... Ne4 {[%clk
0:01:37.5]} 35. Qf4 {[%clk 0:01:11.9]} 35... Ng5 {[%clk 0:01:29.1]} 36. Bd5+
{[%clk 0:01:04.3]} 36... Kh8 {[%clk 0:01:28.4]} 37. Qf5 {[%clk 0:01:02.7]} 37...
Rf8 {[%clk 0:01:24.6]} 38. Bxg5 {[%clk 0:00:55.8]} 38... Rxf5 {[%clk 0:01:15.9]}
39. Bxe7 {[%clk 0:00:56.2]} 39... Rxd5 {[%clk 0:01:17.1]} 40. f4 {[%clk
0:00:55.1]} 40... c4 {[%clk 0:01:15.1]} 41. bxc4 {[%clk 0:00:53.5]} 41... Nxc4
{[%clk 0:01:16.1]} 42. g5 {[%clk 0:00:54.2]} 42... hxg5 {[%clk 0:01:16.7]} 43.
fxg5 {[%clk 0:00:55]} 43... g6 {[%clk 0:00:50.9]} 44. Rf8+ {[%clk 0:00:45.8]}
44... Kg7 {[%clk 0:00:46.7]} 45. h6+ {[%clk 0:00:43.7]} 45... Kh7 {[%clk
0:00:47.4]} 46. Bf6 {[%clk 0:00:30.2]} 46... Rxg5+ {[%clk 0:00:34.2]} 47. Bxg5
{[%clk 0:00:30.4]} 47... d3 {[%clk 0:00:34.5]} 48. Bf6 {[%clk 0:00:31.1]} 48...
g5 {[%clk 0:00:35.1]} 49. Bxg5 {[%clk 0:00:26.6]} 49... Ne5 {[%clk 0:00:33.1]}
50. Bd2 {[%clk 0:00:21.7]} 50... Nc4 {[%clk 0:00:31.1]} 51. Bc3 {[%clk
0:00:21.5]} 51... Kxh6 {[%clk 0:00:30.7]} 52. Rd8 {[%clk 0:00:20.6]} 52... Kg6
{[%clk 0:00:26.8]} 53. Rxd3 {[%clk 0:00:20.6]} 53... Kf5 {[%clk 0:00:28.2]} 54.
Rd7 {[%clk 0:00:21.4]} 54... a5 {[%clk 0:00:29.2]} 55. Bd4 {[%clk 0:00:21.1]}
55... Ke4 {[%clk 0:00:27.9]} 56. Bf2 {[%clk 0:00:21.9]} 56... b5 {[%clk
0:00:21]} 57. Rb7 {[%clk 0:00:20.1]} 57... Nd6 {[%clk 0:00:21.3]} 58. Rb6 {[%clk
0:00:20.5]} 58... Kd5 {[%clk 0:00:22.7]} 59. Bg3 {[%clk 0:00:21.1]} 59... Ne4
{[%clk 0:00:20.8]} 60. Rxb5+ {[%clk 0:00:20.8]} 60... Kc4 {[%clk 0:00:21.9]} 61.
Rxa5 {[%clk 0:00:19.6]} 61... Nxg3 {[%clk 0:00:22.4]} 62. Ra8 {[%clk 0:00:20.8]}
62... Nf5 {[%clk 0:00:22.6]} 63. Kf2 {[%clk 0:00:21.8]} 63... Nd6 {[%clk
0:00:24]} 64. Ke3 {[%clk 0:00:22.2]} 64... Nf5+ {[%clk 0:00:25]} 65. Kf4 {[%clk
0:00:23.1]} 65... Nd6 {[%clk 0:00:26.7]} 66. Ke5 {[%clk 0:00:23.5]} 66... Nb7
{[%clk 0:00:28.2]} 67. Ke6 {[%clk 0:00:22]} 67... Kb5 {[%clk 0:00:28.9]} 68. Kd5
{[%clk 0:00:22.3]} 68... Kb6 {[%clk 0:00:29.9]} 69. Ra3 {[%clk 0:00:20.8]} 69...
Nd8 {[%clk 0:00:26.9]} 70. Rb3+ {[%clk 0:00:21.6]} 70... Ka7 {[%clk 0:00:26.2]}
71. Kd6 {[%clk 0:00:20.9]} 71... Nb7+ {[%clk 0:00:21.4]} 72. Kc7 {[%clk
0:00:20.9]} 72... Na5 {[%clk 0:00:21.7]} 73. Rb5 {[%clk 0:00:20.6]} 73... Ka6
{[%clk 0:00:22.7]} 74. Rh5 {[%clk 0:00:20.2]} 74... Nc4 {[%clk 0:00:21.7]} 75.
a4 {[%clk 0:00:20.4]} 75... Na5 {[%clk 0:00:21.6]} 76. Rc5 {[%clk 0:00:19.8]}
76... Nb7 {[%clk 0:00:18.6]} 77. Rb5 {[%clk 0:00:20.1]} 77... Na5 {[%clk
0:00:18.1]} 78. Kd6 {[%clk 0:00:21]} 78... Nb7+ {[%clk 0:00:17.9]} 79. Kc6
{[%clk 0:00:21.4]} 79... Na5+ {[%clk 0:00:19.1]} 80. Kc7 {[%clk 0:00:21.9]}
80... Nc4 {[%clk 0:00:18]} 81. Rc5 {[%clk 0:00:21.1]} 81... Na5 {[%clk
0:00:18.6]} 82. Rc1 {[%clk 0:00:18.3]} 82... Nb7 {[%clk 0:00:18.5]} 83. Kc6
{[%clk 0:00:17.3]} 83... Na5+ {[%clk 0:00:19.5]} 84. Kd5 {[%clk 0:00:16.7]}
84... Nb7 {[%clk 0:00:19.8]} 85. Rb1 {[%clk 0:00:17.4]} 85... Na5 {[%clk
0:00:20.9]} 86. Kc5 {[%clk 0:00:17.7]} 86... Nb7+ {[%clk 0:00:22]} 87. Kb4
{[%clk 0:00:18.3]} 87... Na5 {[%clk 0:00:21.7]} 88. Rh1 {[%clk 0:00:19.1]} 88...
Nc6+ {[%clk 0:00:22.6]} 89. Kc5 {[%clk 0:00:19.1]} 89... Na5 {[%clk 0:00:21.5]}
90. Rh6+ {[%clk 0:00:19.5]} 90... Ka7 {[%clk 0:00:22.8]} 91. Kb5 {[%clk
0:00:20]} 91... Nb7 {[%clk 0:00:24]} 92. Rh7 {[%clk 0:00:19.3]} 92... Ka8 {[%clk
0:00:18.7]} 93. Kb6 {[%clk 0:00:20]} 93... Nd6 {[%clk 0:00:16.7]} 94. Rh8+
{[%clk 0:00:19.9]} 94... Nc8+ {[%clk 0:00:18.6]} 95. Rxc8# {[%clk 0:00:20.4]}
1-0

[Event "*** Titled Tuesday 3|2 Blitz"]
[Site "Chess.com"]
[Date "2015.10.06"]
[Round "4"]
[White "FMCouch"]
[Black "dretch"]
[Result "0-1"]
[WhiteElo "2040"]
[BlackElo "2542"]
[TimeControl "180+2"]
[EndTime "11:45:50 PDT"]
[Termination "dretch won by resignation"]

1. e4 {[%clk 0:03:01.9]} 1... e6 {[%clk 0:03:01.1]} 2. Nf3 {[%clk 0:03:00]} 2...
d5 {[%clk 0:03:02.3]} 3. Nc3 {[%clk 0:02:59.4]} 3... Nf6 {[%clk 0:03:03.2]} 4.
e5 {[%clk 0:03:00.5]} 4... Nfd7 {[%clk 0:03:04.5]} 5. d4 {[%clk 0:03:02.2]} 5...
c5 {[%clk 0:03:06.4]} 6. dxc5 {[%clk 0:03:03.7]} 6... Nc6 {[%clk 0:03:07.3]} 7.
Bf4 {[%clk 0:03:05.1]} 7... Bxc5 {[%clk 0:03:08.8]} 8. Bd3 {[%clk 0:03:06.6]}
8... f6 {[%clk 0:03:10.3]} 9. exf6 {[%clk 0:03:06.6]} 9... Nxf6 {[%clk
0:03:12.2]} 10. O-O {[%clk 0:03:08.1]} 10... O-O {[%clk 0:03:13.8]} 11. Bg3
{[%clk 0:03:08.7]} 11... Bd7 {[%clk 0:03:07.8]} 12. Qe2 {[%clk 0:03:08.3]} 12...
Nh5 {[%clk 0:03:06.8]} 13. Bh4 {[%clk 0:03:01.3]} 13... Nf4 {[%clk 0:03:07.8]}
14. Qd2 {[%clk 0:02:55.9]} 14... Qe8 {[%clk 0:03:08.8]} 15. Bg5 {[%clk
0:02:47.4]} 15... Nh3+ {[%clk 0:03:01.5]} 16. gxh3 {[%clk 0:02:25.3]} 16... Rxf3
{[%clk 0:03:02.5]} 17. Be2 {[%clk 0:02:20.3]} 17... Nd4 {[%clk 0:02:59.7]} 18.
Kh1 {[%clk 0:02:00.4]} 18... Nxe2 {[%clk 0:02:58.1]} 19. Qxe2 {[%clk 0:02:02.3]}
19... Rxh3 {[%clk 0:02:58.6]} 20. Rg1 {[%clk 0:02:01.3]} 20... Qh5 {[%clk
0:02:51.1]} 21. Qxh5 {[%clk 0:01:56.1]} 21... Rxh5 {[%clk 0:02:53]} 22. Raf1
{[%clk 0:01:31.8]} 22... Rf8 {[%clk 0:02:51]} 23. Rg2 {[%clk 0:01:16.5]} 23...
d4 {[%clk 0:02:52.3]} 24. Ne4 {[%clk 0:01:17.1]} 24... Bc6 {[%clk 0:02:53.7]}
25. f3 {[%clk 0:01:18.5]} 25... Bxe4 {[%clk 0:02:54.2]} 0-1

[Event "*** Titled Tuesday 3|2 Blitz"]
[Site "Chess.com"]
[Date "2015.10.06"]
[Round "4"]
[White "Konavets"]
[Black "kleinebeer98"]
[Result "1-0"]
[WhiteElo "2498"]
[BlackElo "2301"]
[TimeControl "180+2"]
[EndTime "11:46:18 PDT"]
[Termination "Konavets won by checkmate"]

1. b4 {[%clk 0:03:01.9]} 1... Nf6 {[%clk 0:02:57.7]} 2. Bb2 {[%clk 0:03:03.1]}
2... e6 {[%clk 0:02:57.9]} 3. a3 {[%clk 0:03:04.3]} 3... c5 {[%clk 0:02:56.2]}
4. e3 {[%clk 0:03:04.9]} 4... cxb4 {[%clk 0:02:55.9]} 5. axb4 {[%clk 0:03:06.8]}
5... Bxb4 {[%clk 0:02:57.3]} 6. Nf3 {[%clk 0:03:08.7]} 6... O-O {[%clk
0:02:57.6]} 7. g4 {[%clk 0:03:10]} 7... Nxg4 {[%clk 0:02:35.9]} 8. Rg1 {[%clk
0:03:09.8]} 8... Nf6 {[%clk 0:02:36.8]} 9. Bd3 {[%clk 0:02:38.8]} 9... h6 {[%clk
0:02:12.9]} 10. Nh4 {[%clk 0:01:54.2]} 10... Kh8 {[%clk 0:01:33.5]} 11. Rxg7
{[%clk 0:01:38.1]} 11... Be7 {[%clk 0:01:14.2]} 12. Rh7+ {[%clk 0:01:36.8]}
12... Kg8 {[%clk 0:01:14.9]} 13. Qg4+ {[%clk 0:01:38.1]} 13... Nxg4 {[%clk
0:01:15.3]} 14. Rh8# {[%clk 0:01:39.6]} 1-0

[Event "*** Titled Tuesday 3|2 Blitz"]
[Site "Chess.com"]
[Date "2015.10.06"]
[Round "4"]
[White "Zvonokchess"]
[Black "HustleStandard"]
[Result "1-0"]
[WhiteElo "2553"]
[BlackElo "2349"]
[TimeControl "180+2"]
[EndTime "11:46:57 PDT"]
[Termination "Zvonokchess won by resignation"]

1. Nf3 {[%clk 0:02:52.2]} 1... g6 {[%clk 0:02:57.5]} 2. g3 {[%clk 0:02:51.8]}
2... Bg7 {[%clk 0:02:58.7]} 3. Bg2 {[%clk 0:02:53.3]} 3... d5 {[%clk 0:02:59.3]}
4. d4 {[%clk 0:02:52.6]} 4... e6 {[%clk 0:02:59.9]} 5. O-O {[%clk 0:02:48]} 5...
Ne7 {[%clk 0:03:00.2]} 6. Nbd2 {[%clk 0:02:33.4]} 6... O-O {[%clk 0:03:01.8]} 7.
e4 {[%clk 0:02:31.8]} 7... b6 {[%clk 0:02:58.7]} 8. c3 {[%clk 0:02:22.5]} 8...
c5 {[%clk 0:02:57.5]} 9. exd5 {[%clk 0:02:16.7]} 9... exd5 {[%clk 0:02:58.1]}
10. dxc5 {[%clk 0:02:09.3]} 10... bxc5 {[%clk 0:03:00]} 11. Nb3 {[%clk
0:02:10.4]} 11... Ba6 {[%clk 0:02:25.9]} 12. Re1 {[%clk 0:02:09.5]} 12... Nd7
{[%clk 0:02:27.6]} 13. Bg5 {[%clk 0:02:08.3]} 13... f6 {[%clk 0:02:08.6]} 14.
Bf4 {[%clk 0:02:01.7]} 14... Re8 {[%clk 0:01:49.5]} 15. Bd6 {[%clk 0:01:57.8]}
15... Ne5 {[%clk 0:01:31]} 16. Bxe7 {[%clk 0:01:50.3]} 16... Rxe7 {[%clk
0:01:19.1]} 17. Nxe5 {[%clk 0:01:50.9]} 17... fxe5 {[%clk 0:01:18.2]} 18. Qxd5+
{[%clk 0:01:50]} 1-0

[Event "*** Titled Tuesday 3|2 Blitz"]
[Site "Chess.com"]
[Date "2015.10.06"]
[Round "4"]
[White "Dlugy"]
[Black "promen1999"]
[Result "1-0"]
[WhiteElo "2560"]
[BlackElo "2307"]
[TimeControl "180+2"]
[EndTime "11:48:23 PDT"]
[Termination "Dlugy won by resignation"]

1. d4 {[%clk 0:03:01.9]} 1... d5 {[%clk 0:02:59.5]} 2. Bf4 {[%clk 0:03:03.5]}
2... Nf6 {[%clk 0:03:00]} 3. e3 {[%clk 0:03:04.7]} 3... c5 {[%clk 0:03:01.2]} 4.
dxc5 {[%clk 0:03:05.4]} 4... Nc6 {[%clk 0:03:01.6]} 5. Bb5 {[%clk 0:03:05.1]}
5... g6 {[%clk 0:02:59.7]} 6. Nf3 {[%clk 0:03:01.7]} 6... Bg7 {[%clk 0:03:00.3]}
7. O-O {[%clk 0:02:53.7]} 7... O-O {[%clk 0:03:00]} 8. Bxc6 {[%clk 0:02:54.2]}
8... bxc6 {[%clk 0:03:00.5]} 9. Be5 {[%clk 0:02:53.7]} 9... Qa5 {[%clk
0:02:55.3]} 10. Qd4 {[%clk 0:02:51.4]} 10... Bh6 {[%clk 0:02:48.3]} 11. b4
{[%clk 0:02:51.7]} 11... Qd8 {[%clk 0:02:44.8]} 12. c4 {[%clk 0:02:47.8]} 12...
Ba6 {[%clk 0:02:33.2]} 13. b5 {[%clk 0:02:40.4]} 13... cxb5 {[%clk 0:02:33.9]}
14. Bxf6 {[%clk 0:02:41.7]} 14... exf6 {[%clk 0:02:35.1]} 15. cxd5 {[%clk
0:02:43.1]} 15... f5 {[%clk 0:02:36.6]} 16. Nbd2 {[%clk 0:02:25.6]} 16... Re8
{[%clk 0:02:34.3]} 17. Rad1 {[%clk 0:02:13.6]} 17... b4 {[%clk 0:02:29.9]} 18.
Rfe1 {[%clk 0:02:12]} 18... Bg7 {[%clk 0:02:30.8]} 19. Qxb4 {[%clk 0:02:10.8]}
19... Qxd5 {[%clk 0:02:31.2]} 20. Nb3 {[%clk 0:02:11.1]} 20... Qc4 {[%clk
0:02:14.2]} 21. Qxc4 {[%clk 0:02:09.6]} 21... Bxc4 {[%clk 0:02:14.7]} 22. Rc1
{[%clk 0:02:05.4]} 22... Bd5 {[%clk 0:02:13.8]} 23. Red1 {[%clk 0:02:02.4]}
23... Red8 {[%clk 0:02:14.4]} 24. Nfd4 {[%clk 0:02:03.3]} 24... a5 {[%clk
0:02:09.6]} 25. a4 {[%clk 0:01:37.4]} 25... Rdb8 {[%clk 0:02:08.3]} 26. c6
{[%clk 0:01:32.9]} 26... Bxb3 {[%clk 0:02:07]} 27. Nxb3 {[%clk 0:01:27.4]} 27...
Be5 {[%clk 0:01:38.6]} 28. Nd4 {[%clk 0:01:12.9]} 28... Rb4 {[%clk 0:01:37.6]}
29. c7 {[%clk 0:01:14.1]} 29... Rc8 {[%clk 0:01:37.1]} 30. Nc6 {[%clk
0:01:15.3]} 30... Rxc7 {[%clk 0:01:21.1]} 31. Nxb4 {[%clk 0:01:01.5]} 31... Rxc1
{[%clk 0:01:21.4]} 32. Rxc1 {[%clk 0:01:02.6]} 32... axb4 {[%clk 0:01:23]} 33.
a5 {[%clk 0:01:00.7]} 33... b3 {[%clk 0:01:23.7]} 34. a6 {[%clk 0:01:00.9]}
34... b2 {[%clk 0:01:24.9]} 35. Rb1 {[%clk 0:01:02]} 1-0

[Event "*** Titled Tuesday 3|2 Blitz"]
[Site "Chess.com"]
[Date "2015.10.06"]
[Round "4"]
[White "armago"]
[Black "EltajSafarli"]
[Result "0-1"]
[WhiteElo "2052"]
[BlackElo "2676"]
[TimeControl "180+2"]
[EndTime "11:48:26 PDT"]
[Termination "EltajSafarli won by resignation"]

1. d4 {[%clk 0:03:01.9]} 1... Nf6 {[%clk 0:02:58.2]} 2. c4 {[%clk 0:02:53.2]}
2... g6 {[%clk 0:02:57.3]} 3. Nc3 {[%clk 0:02:54.1]} 3... d5 {[%clk 0:02:58.4]}
4. cxd5 {[%clk 0:02:54.5]} 4... Nxd5 {[%clk 0:03:00.3]} 5. e4 {[%clk 0:02:56.1]}
5... Nxc3 {[%clk 0:03:01.5]} 6. bxc3 {[%clk 0:02:57.8]} 6... Bg7 {[%clk
0:03:03.4]} 7. Nf3 {[%clk 0:02:58.8]} 7... c5 {[%clk 0:03:02.2]} 8. Rb1 {[%clk
0:02:59.9]} 8... O-O {[%clk 0:03:02.3]} 9. Be2 {[%clk 0:03:00.7]} 9... Nd7
{[%clk 0:03:01.2]} 10. O-O {[%clk 0:03:00.3]} 10... Nf6 {[%clk 0:03:02]} 11. Qc2
{[%clk 0:02:50.4]} 11... Nxe4 {[%clk 0:03:02.9]} 12. Rd1 {[%clk 0:02:40.2]}
12... Bf5 {[%clk 0:03:02.4]} 13. Bd3 {[%clk 0:02:40.3]} 13... Nf6 {[%clk
0:02:49.3]} 14. Bxf5 {[%clk 0:02:40]} 14... gxf5 {[%clk 0:02:51.2]} 15. Qxf5
{[%clk 0:02:30.7]} 15... Qd5 {[%clk 0:02:51.6]} 16. Qxd5 {[%clk 0:02:13.2]}
16... Nxd5 {[%clk 0:02:53.5]} 17. Rxb7 {[%clk 0:02:13.9]} 17... Nxc3 {[%clk
0:02:54.2]} 18. Re1 {[%clk 0:02:10.4]} 18... cxd4 {[%clk 0:02:55.2]} 19. Bd2
{[%clk 0:02:07.2]} 19... Nd5 {[%clk 0:02:54.5]} 20. Re4 {[%clk 0:01:57.3]} 20...
Rfb8 {[%clk 0:02:54.8]} 21. Rxb8+ {[%clk 0:01:53.6]} 21... Rxb8 {[%clk
0:02:56.7]} 22. Kf1 {[%clk 0:01:41.3]} 22... Rb1+ {[%clk 0:02:54.2]} 23. Ke2
{[%clk 0:01:32.1]} 23... Nc3+ {[%clk 0:02:55.3]} 24. Bxc3 {[%clk 0:01:30]} 24...
dxc3 {[%clk 0:02:57.2]} 25. Kd3 {[%clk 0:01:28.2]} 25... Rb2 {[%clk 0:02:46.6]}
26. Re2 {[%clk 0:01:28.3]} 26... Rb7 {[%clk 0:02:46.1]} 27. Kc2 {[%clk
0:01:22.9]} 27... e6 {[%clk 0:02:45.4]} 28. a3 {[%clk 0:01:22]} 28... Kf8 {[%clk
0:02:44.5]} 29. Kd3 {[%clk 0:01:14]} 29... Ke7 {[%clk 0:02:45.4]} 30. Re4 {[%clk
0:01:11]} 30... Rb2 {[%clk 0:02:40.8]} 31. Re2 {[%clk 0:01:10.8]} 31... Rb3
{[%clk 0:02:41.6]} 32. a4 {[%clk 0:01:09.1]} 32... Ra3 {[%clk 0:02:42.4]} 33.
Re4 {[%clk 0:01:09.1]} 33... Ra2 {[%clk 0:02:42.7]} 34. Rc4 {[%clk 0:01:07.2]}
34... Rxf2 {[%clk 0:02:40.6]} 35. Rc7+ {[%clk 0:01:07.6]} 35... Kd6 {[%clk
0:02:39.6]} 36. Rc4 {[%clk 0:00:19.9]} 36... Rxg2 {[%clk 0:02:36.1]} 37. Ne1
{[%clk 0:00:18.9]} 37... Rxh2 {[%clk 0:02:32.6]} 0-1